bitfinex/quotes_BTCUSD_20241229
["timestamp","ask_amount","ask_price","bid_price","bid_amount"]
[1735456816422,2.89838448,95383.0,95382.0,0.04068073]
[1735456816649,2.88193156,95383.0,95382.0,0.04068073]
[1735456819496,2.89838448,95383.0,95382.0,0.04068073]
[1735456819696,2.92598549,95383.0,95382.0,0.04068073]
[1735456819905,2.89838448,95383.0,95382.0,0.04068073]
[1735456822509,0.30932948,95383.0,95382.0,0.04068073]
[1735456822682,0.30932948,95383.0,95382.0,0.16648073]
[1735456822916,1.89469748,95383.0,95382.0,0.16648073]
[1735456823119,0.98654656,95383.0,95382.0,0.16648073]
[1735456823364,0.62142856,95383.0,95382.0,0.26648073]
[1735456823573,0.29287656,95383.0,95382.0,0.26648073]
[1735456823994,0.29287656,95383.0,95382.0,0.34398619]
[1735456824162,0.29287656,95383.0,95382.0,0.37940189]
[1735456824361,0.16477656,95383.0,95382.0,0.38040189]
[1735456824684,0.03667656,95383.0,95382.0,0.37940189]
[1735456824899,0.03667656,95383.0,95382.0,0.38340189]
[1735456825481,0.03667656,95383.0,95382.0,0.38240189]
[1735456825931,0.03667656,95383.0,95382.0,0.39140189]
[1735456826138,0.03667656,95383.0,95382.0,0.38240189]
[1735456826436,0.05312663,95383.0,95382.0,0.35298619]
[1735456826778,0.05312663,95383.0,95382.0,0.34698619]
[1735456826974,0.05312663,95383.0,95382.0,0.35598619]
[1735456827183,0.05312663,95383.0,95382.0,0.35298619]
[1735456827426,0.05312663,95383.0,95382.0,0.35698619]
[1735456827939,0.05312663,95383.0,95382.0,0.35298619]
[1735456828314,0.05312663,95383.0,95382.0,0.35698619]
[1735456828579,0.05312663,95383.0,95382.0,0.34798619]
[1735456829098,0.05312663,95383.0,95382.0,0.35698619]
[1735456833127,0.03667656,95383.0,95382.0,0.35698619]
[1735456833312,0.03667656,95383.0,95382.0,0.27948073]
[1735456833618,0.03667656,95383.0,95382.0,0.35698619]
[1735456836284,0.05312669,95383.0,95382.0,0.35698619]
[1735456838869,0.05312669,95383.0,95382.0,0.35298619]
[1735456839099,0.05312669,95383.0,95382.0,0.34798619]
[1735456839427,0.05312669,95383.0,95382.0,0.35698619]
[1735456841290,0.05312669,95383.0,95382.0,0.39270189]
[1735456842994,0.05312669,95383.0,95382.0,0.49668821]
[1735456843336,0.03667656,95383.0,95382.0,0.49668821]
[1735456845078,8.54e-05,95383.0,95382.0,0.49668821]
[1735456846403,0.01653356,95383.0,95382.0,0.49668821]
[1735456848913,0.01653356,95383.0,95382.0,0.46097251]
[1735456852248,8.54e-05,95383.0,95382.0,0.46097251]
[1735456855503,0.0165336,95383.0,95382.0,0.46097251]
[1735456863337,8.54e-05,95383.0,95382.0,0.46097251]
[1735456866420,0.01653392,95383.0,95382.0,0.46097251]
[1735456873190,8.54e-05,95383.0,95382.0,0.46097251]
[1735456876461,0.0165342,95383.0,95382.0,0.46097251]
[1735456878664,0.0165342,95383.0,95382.0,0.33517251]
[1735456878914,0.0165342,95383.0,95382.0,0.23517251]
[1735456879314,0.0165342,95383.0,95382.0,0.33517251]
[1735456879979,0.0165342,95383.0,95382.0,0.23517251]
[1735456880196,0.0165342,95383.0,95382.0,0.33517251]
[1735456881243,0.0165342,95383.0,95382.0,0.23118619]
[1735456883067,8.54e-05,95383.0,95382.0,0.23118619]
[1735456886312,0.01653437,95383.0,95382.0,0.23118619]
[1735456890198,0.01653437,95383.0,95382.0,0.26217189]
[1735456890703,0.01653437,95383.0,95382.0,0.23118619]
[1735456893208,8.54e-05,95383.0,95382.0,0.33517251]
[1735456893427,8.54e-05,95383.0,95382.0,0.41557251]
[1735456894640,8.54e-05,95383.0,95382.0,0.46077251]
[1735456894869,8.54e-05,95383.0,95382.0,0.52686684]
[1735456895852,8.54e-05,95383.0,95382.0,0.52286684]
[1735456896234,8.54e-05,95383.0,95382.0,0.53086684]
[1735456896411,0.01653336,95383.0,95382.0,0.53086684]
[1735456897090,0.01653336,95383.0,95382.0,0.52186684]
[1735456897796,0.01653336,95383.0,95382.0,0.62186684]
[1735456898278,0.01653336,95383.0,95382.0,0.63086684]
[1735456902287,8.54e-05,95383.0,95382.0,0.46477251]
[1735456903230,8.54e-05,95383.0,95382.0,1.00391631]
[1735456905493,0.01653293,95383.0,95382.0,1.00391631]
[1735456906104,0.01653293,95383.0,95382.0,0.90391631]
[1735456906309,0.01653293,95383.0,95382.0,0.46477251]
[1735456907164,0.01653293,95383.0,95382.0,0.41957251]
[1735456907897,0.01653293,95383.0,95382.0,0.52355883]
[1735456910733,0.0472,95404.0,95382.0,0.52355883]
[1735456910734,0.00852618,95404.0,95403.0,0.07750546]
[1735456910912,0.01817524,95404.0,95403.0,0.07750546]
[1735456911118,0.0346224,95404.0,95403.0,0.07750546]
[1735456911714,0.0346224,95404.0,95403.0,0.08050546]
[1735456912331,0.01695548,95404.0,95403.0,0.08050546]
[1735456912646,0.02609622,95404.0,95403.0,0.08050546]
[1735456913068,0.02609622,95404.0,95403.0,0.08950546]
[1735456913392,0.01695548,95404.0,95403.0,0.08950546]
[1735456914081,0.02609622,95404.0,95403.0,0.08950546]
[1735456914691,0.02609622,95404.0,95403.0,0.18950546]
[1735456914830,0.02609622,95404.0,95403.0,0.21626601]
[1735456915037,0.00050832,95404.0,95403.0,0.21626601]
[1735456917296,0.01695447,95404.0,95403.0,0.21626601]
[1735456917934,0.01810043,95419.0,95414.0,0.1]
[1735456918121,1.93297,95418.0,95414.0,0.1]
[1735456918322,1.94211087,95418.0,95414.0,0.1]
[1735456918523,1.93296,95417.0,95414.0,0.1]
[1735456918839,0.00781525,95416.0,95414.0,0.1]
[1735456919063,0.926631,95415.0,95414.0,0.1]
[1735456919267,0.750431,95415.0,95414.0,0.1]
[1735456919472,0.750431,95415.0,95414.0,0.103]
[1735456919674,0.75824404,95415.0,95414.0,0.12105055]
[1735456919896,0.44977204,95415.0,95414.0,0.12105055]
[1735456920072,0.29061804,95415.0,95414.0,0.12105055]
[1735456920271,0.29061804,95415.0,95414.0,0.11905055]
[1735456920496,0.29061804,95415.0,95414.0,0.12305055]
[1735456920894,0.29061804,95415.0,95414.0,0.12205055]
[1735456921045,0.29061804,95415.0,95414.0,0.113]
[1735456922221,0.29061804,95415.0,95414.0,0.102]
[1735456922387,0.29061804,95415.0,95414.0,0.1]
[1735456922580,0.29061804,95415.0,95414.0,0.106]
[1735456923549,0.29070344,95415.0,95414.0,0.106]
[1735456930937,0.00789844,95415.0,95414.0,0.106]
[1735456931359,0.72755281,95415.0,95414.0,0.106]
[1735456931541,0.00924381,95415.0,95414.0,0.106]
[1735456931749,0.77904681,95415.0,95414.0,0.106]
[1735456932124,0.50345108,95415.0,95414.0,0.106]
[1735456932320,0.00763201,95415.0,95414.0,0.106]
[1735456932778,0.46884001,95415.0,95414.0,0.106]
[1735456932923,0.00763201,95415.0,95414.0,0.106]
[1735456933124,0.37517301,95415.0,95414.0,0.106]
[1735456933510,0.34151201,95415.0,95414.0,0.106]
[1735456934994,0.34151201,95415.0,95414.0,0.1061708]
[1735456937949,0.31410801,95415.0,95414.0,0.1061708]
[1735456942075,0.33055387,95415.0,95414.0,0.1061708]
[1735456943810,0.5196284,95415.0,95414.0,0.1061708]
[1735456945209,0.3823154,95415.0,95414.0,0.1061708]
[1735456946290,0.3678954,95415.0,95414.0,0.1061708]
[1735456947064,0.17882087,95415.0,95414.0,0.1061708]
[1735456947454,0.17890627,95415.0,95414.0,0.1061708]
[1735456948301,0.3679808,95415.0,95414.0,0.1061708]
[1735456948502,0.3227988,95415.0,95414.0,0.1061708]
[1735456953255,0.2132378,95415.0,95414.0,0.1061708]
[1735456953452,0.3625118,95415.0,95414.0,0.1061708]
[1735456953885,0.17343727,95415.0,95414.0,0.1061708]
[1735456954272,0.15983727,95415.0,95414.0,0.1061708]
[1735456955654,0.02416327,95415.0,95414.0,0.1061708]
[1735456958035,0.12740927,95415.0,95414.0,0.1061708]
[1735456960883,0.363878,95415.0,95414.0,0.1061708]
[1735456967669,0.36388398,95415.0,95414.0,0.1061708]
[1735456969587,0.36388398,95415.0,95414.0,0.0061708]
[1735456970460,0.12741525,95415.0,95414.0,0.0061708]
[1735456972127,0.20681525,95415.0,95414.0,0.0061708]
[1735456972891,0.49057773,95415.0,95414.0,0.0061708]
[1735456973571,0.20681525,95415.0,95414.0,0.0061708]
[1735456975535,0.49059564,95415.0,95414.0,0.0061708]
[1735456976542,0.20681525,95415.0,95414.0,0.0061708]
[1735456978108,0.12741525,95415.0,95414.0,0.0061708]
[1735456983947,0.11096939,95415.0,95414.0,0.0061708]
[1735456984174,0.34731316,95415.0,95414.0,0.0061708]
[1735456985137,0.11096939,95415.0,95414.0,0.0061708]
[1735456987372,0.12741586,95415.0,95414.0,0.0061708]
[1735456988526,2.56948686,95415.0,95414.0,0.0061708]
[1735456988730,2.51691886,95415.0,95414.0,0.0061708]
[1735456993113,2.51621521,95415.0,95414.0,0.0061708]
[1735457003284,0.02346621,95415.0,95414.0,0.0061708]
[1735457003848,3.78852221,95415.0,95414.0,0.0061708]
[1735457004056,3.48053921,95415.0,95414.0,0.0061708]
[1735457004835,3.38283521,95415.0,95414.0,0.0061708]
[1735457008902,3.53713622,95415.0,95414.0,0.0061708]
[1735457009103,3.52068975,95415.0,95414.0,0.0061708]
[1735457011459,3.54523129,95415.0,95414.0,0.0061708]
[1735457012078,3.56167947,95415.0,95414.0,0.0061708]
[1735457012267,0.0768,95414.0,95382.0,0.12348073]
[1735457012466,0.0768,95413.0,95382.0,0.12348073]
[1735457012676,4.69953401,95412.0,95382.0,0.12348073]
[1735457012872,4.518278,95411.0,95382.0,0.12348073]
[1735457013073,0.02760101,95410.0,95382.0,0.12348073]
[1735457013275,4.502096,95409.0,95382.0,0.12348073]
[1735457013610,0.18910325,95388.0,95382.0,0.12548073]
[1735457013810,3.023866,95387.0,95382.0,0.13148073]
[1735457013963,3.023866,95387.0,95382.0,0.12348073]
[1735457014166,3.023866,95387.0,95382.0,0.12548073]
[1735457014367,2.823866,95387.0,95382.0,0.13348073]
[1735457014567,2.938456,95388.0,95382.0,0.12548073]
[1735457014793,2.938456,95388.0,95382.0,0.12598905]
[1735457015011,2.938456,95388.0,95382.0,0.13498905]
[1735457015810,0.18910325,95389.0,95382.0,0.13498905]
[1735457016135,0.01645081,95387.0,95382.0,0.13298905]
[1735457016336,0.18910325,95384.0,95382.0,0.13998905]
[1735457016576,3.058615,95383.0,95382.0,0.13998905]
[1735457016716,2.16100313,95383.0,95382.0,0.12398905]
[1735457017121,2.16100313,95383.0,95382.0,0.13998905]
[1735457017323,2.16100313,95383.0,95382.0,0.13098905]
[1735457017528,2.16100313,95383.0,95382.0,0.12398905]
[1735457017700,2.16100313,95383.0,95382.0,0.13298905]
[1735457017902,2.16100313,95383.0,95382.0,0.14098905]
[1735457018336,2.16100313,95383.0,95382.0,0.05818905]
[1735457018680,2.16000313,95383.0,95382.0,0.05818905]
[1735457021128,2.16215484,95383.0,95382.0,0.05818905]
[1735457021461,2.16215484,95383.0,95382.0,0.04918905]
[1735457021999,2.16215484,95383.0,95382.0,0.05218905]
[1735457022211,2.16215484,95383.0,95382.0,0.04418905]
[1735457022418,2.16215484,95383.0,95382.0,0.04518905]
[1735457022836,2.16215484,95383.0,95382.0,0.04418905]
[1735457023370,2.16215484,95383.0,95382.0,0.04218905]
[1735457023801,2.16215484,95383.0,95382.0,0.04518905]
[1735457023934,2.16215484,95383.0,95382.0,0.04218905]
[1735457024337,2.16215484,95383.0,95382.0,0.04518905]
[1735457024839,2.35080613,95383.0,95382.0,0.04518905]
[1735457025642,2.16215484,95383.0,95382.0,0.04518905]
[1735457027098,2.17860758,95383.0,95382.0,0.04518905]
[1735457028777,0.02235258,95383.0,95382.0,0.04518905]
[1735457028972,2.98612758,95383.0,95382.0,0.04518905]
[1735457029402,2.89046158,95383.0,95382.0,0.04518905]
[1735457030355,2.55507158,95383.0,95382.0,0.04518905]
[1735457032346,2.74356278,95383.0,95382.0,0.04518905]
[1735457033154,2.53861884,95383.0,95382.0,0.04518905]
[1735457036325,2.55507091,95383.0,95382.0,0.04518905]
[1735457037363,2.74352327,95383.0,95382.0,0.04518905]
[1735457039199,2.55507091,95383.0,95382.0,0.04518905]
[1735457040948,2.74351872,95383.0,95382.0,0.04518905]
[1735457041281,2.74360412,95383.0,95382.0,0.04518905]
[1735457041701,3.80043312,95383.0,95382.0,0.04518905]
[1735457041907,3.91782012,95383.0,95382.0,0.04518905]
[1735457042122,3.68314712,95383.0,95382.0,0.04518905]
[1735457042500,3.40394512,95383.0,95382.0,0.04518905]
[1735457042855,3.24614412,95383.0,95382.0,0.04518905]
[1735457043423,3.22969205,95383.0,95382.0,0.04518905]
[1735457044619,3.02266705,95383.0,95382.0,0.04518905]
[1735457044818,2.97181705,95383.0,95382.0,0.04518905]
[1735457045702,2.78336924,95383.0,95382.0,0.04518905]
[1735457046422,2.79982131,95383.0,95382.0,0.04418905]
[1735457046566,2.79982131,95383.0,95382.0,0.04118905]
[1735457046767,2.80182131,95383.0,95382.0,0.04118905]
[1735457047567,2.80382131,95383.0,95382.0,0.04118905]
[1735457047943,3.02500168,95383.0,95382.0,0.04118905]
[1735457048542,3.02300168,95383.0,95382.0,0.04118905]
[1735457048939,3.02500168,95383.0,95382.0,0.04118905]
[1735457050849,3.04145417,95383.0,95382.0,0.04118905]
[1735457051286,2.80582173,95383.0,95382.0,0.04118905]
[1735457054404,3.80604273,95383.0,95382.0,0.04118905]
[1735457054609,3.74581373,95383.0,95382.0,0.04118905]
[1735457054780,3.70624773,95383.0,95382.0,0.04118905]
[1735457054979,3.68979524,95383.0,95382.0,0.04118905]
[1735457055838,3.71739625,95383.0,95382.0,0.04118905]
[1735457056404,3.78064876,95383.0,95382.0,0.04118905]
[1735457063156,3.76419625,95383.0,95382.0,0.04118905]
[1735457063754,3.84299625,95383.0,95382.0,0.04118905]
[1735457064639,3.58512025,95383.0,95382.0,0.04118905]
[1735457064851,3.60486213,95383.0,95382.0,0.04118905]
[1735457066090,3.58399113,95383.0,95382.0,0.04118905]
[1735457066634,3.56647877,95383.0,95382.0,0.03218818]
[1735457066757,3.59407978,95383.0,95382.0,0.03218818]
[1735457066962,3.73639801,95383.0,95382.0,0.03218818]
[1735457067369,3.76093955,95383.0,95382.0,0.03218818]
[1735457067567,3.75893955,95383.0,95382.0,0.03218818]
[1735457068219,3.76693955,95383.0,95382.0,0.03318818]
[1735457068396,3.75893955,95383.0,95382.0,0.03218818]
[1735457068603,0.14679454,95381.0,95380.0,0.0001708]
[1735457068805,5.00313508,95381.0,95380.0,0.0001708]
[1735457069005,5.53388417,95381.0,95380.0,0.0001708]
[1735457069395,4.83207517,95381.0,95380.0,0.0001708]
[1735457069597,4.85181705,95381.0,95380.0,0.0001708]
[1735457069837,4.85981705,95381.0,95380.0,0.0011708]
[1735457070647,4.79735905,95381.0,95380.0,0.0011708]
[1735457071367,4.77185405,95381.0,95380.0,0.0011708]
[1735457071516,4.90192651,95381.0,95380.0,0.0011708]
[1735457072133,4.67923151,95381.0,95380.0,0.0011708]
[1735457073189,4.65195051,95381.0,95380.0,0.0011708]
[1735457073358,4.61307851,95381.0,95380.0,0.0011708]
[1735457073693,4.45673151,95381.0,95380.0,0.0011708]
[1735457074417,4.26070251,95381.0,95380.0,0.0011708]
[1735457074615,4.08029451,95381.0,95380.0,0.0011708]
[1735457075356,3.7054165,95381.0,95380.0,0.0011708]
[1735457075633,2.9625635,95381.0,95380.0,0.0011708]
[1735457076641,2.76641031,95381.0,95380.0,0.0011708]
[1735457076844,2.78830856,95381.0,95380.0,0.0011708]
[1735457078010,2.67750856,95381.0,95380.0,0.0011708]
[1735457078661,2.93500856,95381.0,95380.0,0.0011708]
[1735457079603,0.03291937,95365.0,95363.0,0.07257074]
[1735457079719,4.373271,95364.0,95363.0,0.07262156]
[1735457079914,4.87521043,95364.0,95363.0,0.07262156]
[1735457080122,2.8983192,95364.0,95363.0,0.07262156]
[1735457080436,2.91477674,95364.0,95363.0,0.07262156]
[1735457081810,2.91877674,95364.0,95363.0,0.07262156]
[1735457082039,2.92077674,95364.0,95363.0,0.07262156]
[1735457083365,0.52645474,95364.0,95363.0,0.07262156]
[1735457083587,3.64952074,95364.0,95363.0,0.07262156]
[1735457084893,3.5790102,95364.0,95363.0,0.07262156]
[1735457085179,3.2113882,95364.0,95363.0,0.07262156]
[1735457086907,3.23113402,95364.0,95363.0,0.07262156]
[1735457087924,3.24759156,95364.0,95363.0,0.07262156]
[1735457088528,3.24759156,95364.0,95363.0,0.07279236]
[1735457089834,3.05028876,95364.0,95363.0,0.07279236]
[1735457090844,3.03054294,95364.0,95363.0,0.07279236]
[1735457093042,3.03054294,95364.0,95363.0,0.06307136]
[1735457093583,3.03054294,95364.0,95363.0,0.05044032]
[1735457094203,3.03054294,95364.0,95363.0,0.04200475]
[1735457094432,3.31343314,95364.0,95363.0,0.04200475]
[1735457095518,3.03054294,95364.0,95363.0,0.04200475]
[1735457096440,3.2969756,95364.0,95363.0,0.04200475]
[1735457097363,3.03054294,95364.0,95363.0,0.04200475]
[1735457098282,3.31343314,95364.0,95363.0,0.04200475]
[1735457099303,3.03054294,95364.0,95363.0,0.04200475]
[1735457100607,3.05028916,95364.0,95363.0,0.04200475]
[1735457100982,3.05037466,95364.0,95363.0,0.04200475]
[1735457102444,3.05037466,95364.0,95363.0,0.03697308]
[1735457103866,3.03391712,95364.0,95363.0,0.03697308]
[1735457104407,3.02991712,95364.0,95363.0,0.03697308]
[1735457104625,3.34612357,95364.0,95363.0,0.03697308]
[1735457104860,3.35412357,95364.0,95363.0,0.03797308]
[1735457105065,3.34912357,95364.0,95363.0,0.03697308]
[1735457105262,3.32937735,95364.0,95363.0,0.03697308]
[1735457105468,5.41663535,95364.0,95363.0,0.03797308]
[1735457105691,5.0984289,95364.0,95363.0,0.03797308]
[1735457106177,4.0861119,95364.0,95363.0,0.03797308]
[1735457106359,4.0831119,95364.0,95363.0,0.03797308]
[1735457106951,4.0851119,95364.0,95363.0,0.03797308]
[1735457107169,4.10156872,95364.0,95363.0,0.03797308]
[1735457108252,4.07730172,95364.0,95363.0,0.03797308]
[1735457109715,3.90794172,95364.0,95363.0,0.03797308]
[1735457109910,3.63658972,95364.0,95363.0,0.03797308]
[1735457111297,2.69538472,95364.0,95363.0,0.03797308]
[1735457112436,2.69538472,95364.0,95363.0,0.08607308]
[1735457113066,2.6789279,95364.0,95363.0,0.08607308]
[1735457113664,2.6719279,95364.0,95363.0,0.08507308]
[1735457114065,2.6759279,95364.0,95363.0,0.08507308]
[1735457114246,2.99536558,95364.0,95363.0,0.08507308]
[1735457115550,2.6759279,95364.0,95363.0,0.08507308]
[1735457116252,2.69238409,95364.0,95363.0,0.08507308]
[1735457118849,2.04871109,95364.0,95363.0,0.08507308]
[1735457119021,1.96678509,95364.0,95363.0,0.08507308]
[1735457119223,1.9503289,95364.0,95363.0,0.08507308]
[1735457119591,1.96278461,95364.0,95363.0,0.08507308]
[1735457119994,1.96678461,95364.0,95363.0,0.08507308]
[1735457120439,1.96578461,95364.0,95363.0,0.08507308]
[1735457120666,1.96578461,95364.0,95363.0,0.08807308]
[1735457120890,1.96578461,95364.0,95363.0,0.08907308]
[1735457122960,1.95744636,95364.0,95363.0,0.08907308]
[1735457123804,1.94099065,95364.0,95363.0,0.08907308]
[1735457127193,1.95744636,95364.0,95363.0,0.08907308]
[1735457131275,1.95668288,95364.0,95363.0,0.08907308]
[1735457133546,2.1928625,95364.0,95363.0,0.08907308]
[1735457133690,2.17640679,95364.0,95363.0,0.08907308]
[1735457134878,1.94022717,95364.0,95363.0,0.08907308]
[1735457135658,3.10799617,95364.0,95363.0,0.08907308]
[1735457135859,3.19436717,95364.0,95363.0,0.08907308]
[1735457136105,3.18272217,95364.0,95363.0,0.08907308]
[1735457137104,3.05472088,95364.0,95363.0,0.08907308]
[1735457137314,2.80022488,95364.0,95363.0,0.08907308]
[1735457140272,2.8035907,95364.0,95363.0,0.08907308]
[1735457141286,2.8035907,95364.0,95363.0,0.08807308]
[1735457142501,2.8005907,95364.0,95363.0,0.08507308]
[1735457143046,2.8005907,95364.0,95363.0,0.08607308]
[1735457143691,2.8005907,95364.0,95363.0,0.08507308]
[1735457143892,2.8005907,95364.0,95363.0,0.08607308]
[1735457149148,2.6004907,95364.0,95363.0,0.08607308]
[1735457149358,2.4336457,95364.0,95363.0,0.08607308]
[1735457149684,0.3174997,95364.0,95363.0,0.08607308]
[1735457150112,2.7504097,95364.0,95363.0,0.08607308]
[1735457150274,2.6715477,95364.0,95363.0,0.08607308]
[1735457151327,2.6280367,95364.0,95363.0,0.08607308]
[1735457151458,2.3805107,95364.0,95363.0,0.08607308]
[1735457151835,2.2963667,95364.0,95363.0,0.08607308]
[1735457152633,2.2090607,95364.0,95363.0,0.08607308]
[1735457156375,2.49279213,95364.0,95363.0,0.08607308]
[1735457157267,2.2090607,95364.0,95363.0,0.08607308]
[1735457159129,2.2090607,95364.0,95363.0,0.08317578]
[1735457159536,2.0638907,95364.0,95363.0,0.08317578]
[1735457159950,2.34794766,95364.0,95363.0,0.08317578]
[1735457162210,2.0638907,95364.0,95363.0,0.08317578]
[1735457162613,1.9847657,95364.0,95363.0,0.08317578]
[1735457162887,1.9220457,95364.0,95363.0,0.08317578]
[1735457164088,1.7970317,95364.0,95363.0,0.08317578]
[1735457167177,1.7518627,95364.0,95363.0,0.08317578]
[1735457167409,1.7518627,95364.0,95363.0,0.28317578]
[1735457167639,0.87018199,95364.0,95363.0,0.28317578]
[1735457167835,1.15432738,95364.0,95363.0,0.28317578]
[1735457168545,0.87018199,95364.0,95363.0,0.28317578]
[1735457171125,0.88663689,95364.0,95363.0,0.28317578]
[1735457172247,0.87018199,95364.0,95363.0,0.28317578]
[1735457173699,0.87018199,95364.0,95363.0,0.18317578]
[1735457175481,0.88663693,95364.0,95363.0,0.18317578]
[1735457175634,0.87018199,95364.0,95363.0,0.18317578]
[1735457178468,0.88663666,95364.0,95363.0,0.18317578]
[1735457198656,0.88663666,95364.0,95363.0,0.17537578]
[1735457199877,0.87018199,95364.0,95363.0,0.17537578]
[1735457202728,0.88663666,95364.0,95363.0,0.17537578]
[1735457204619,0.31749866,95364.0,95363.0,0.17537578]
[1735457204968,1.82498066,95364.0,95363.0,0.17537578]
[1735457205188,1.61327366,95364.0,95363.0,0.17537578]
[1735457205391,1.58403966,95364.0,95363.0,0.17537578]
[1735457206134,1.38914254,95364.0,95363.0,0.17537578]
[1735457206836,1.62590279,95364.0,95363.0,0.17537578]
[1735457210580,1.62590279,95364.0,95363.0,0.07537578]
[1735457210783,1.62590279,95364.0,95363.0,0.17537578]
[1735457210972,1.38914254,95364.0,95363.0,0.17537578]
[1735457215982,1.12556254,95364.0,95363.0,0.17537578]
[1735457216109,0.98079854,95364.0,95363.0,0.17537578]
[1735457216512,0.96434387,95364.0,95363.0,0.07537578]
[1735457216718,0.96434387,95364.0,95363.0,0.17537578]
[1735457217936,0.96434387,95364.0,95363.0,0.27537578]
[1735457218130,0.10614687,95364.0,95363.0,0.27537578]
[1735457218906,0.10614687,95364.0,95363.0,0.27437578]
[1735457219154,0.10714687,95364.0,95363.0,0.28337578]
[1735457219572,0.10814687,95364.0,95363.0,0.28837578]
[1735457219771,0.26145395,95364.0,95363.0,0.28837578]
[1735457219930,0.26145395,95364.0,95363.0,0.29137578]
[1735457220910,0.45084078,95364.0,95363.0,0.29137578]
[1735457222924,0.24499987,95364.0,95363.0,0.29137578]
[1735457223114,0.10814687,95364.0,95363.0,0.3205219]
[1735457224817,0.10814687,95364.0,95363.0,0.42450822]
[1735457225796,0.10614687,95364.0,95363.0,0.40750822]
[1735457225971,0.12259939,95364.0,95363.0,0.40750822]
[1735457226213,0.12359939,95364.0,95363.0,0.41650822]
[1735457226523,0.12359939,95364.0,95363.0,0.42350822]
[1735457226819,0.1191758,95364.0,95363.0,0.42350822]
[1735457227545,0.0020855,95364.0,95363.0,0.42350822]
[1735457230204,0.01853759,95364.0,95363.0,0.42350822]
[1735457241441,0.01853759,95364.0,95363.0,0.3943621]
[1735457245788,0.01853759,95364.0,95363.0,0.11622162]
[1735457246006,0.01853759,95364.0,95363.0,0.01622162]
[1735457246192,0.01853759,95364.0,95363.0,0.11622162]
[1735457246413,0.00725498,95364.0,95363.0,0.01622162]
[1735457246813,0.00625498,95364.0,95363.0,0.00922162]
[1735457247243,0.00625498,95364.0,95363.0,0.11122162]
[1735457247244,1.62980098,95364.0,95363.0,0.11122162]
[1735457247453,1.91169998,95364.0,95363.0,0.11122162]
[1735457247654,1.91169998,95364.0,95363.0,0.10022162]
[1735457247655,2.02499898,95364.0,95363.0,0.10022162]
[1735457247854,2.09218198,95364.0,95363.0,0.10022162]
[1735457248055,2.09156198,95364.0,95363.0,0.11022162]
[1735457248260,2.09156198,95364.0,95363.0,0.10322162]
[1735457248631,2.09156198,95364.0,95363.0,0.10722162]
[1735457249380,2.07699498,95364.0,95363.0,0.10422162]
[1735457249592,2.07699498,95364.0,95363.0,0.10622162]
[1735457249807,2.09345006,95364.0,95363.0,0.10622162]
[1735457250028,2.09345006,95364.0,95363.0,0.00622162]
[1735457252568,2.09345006,95364.0,95363.0,0.10622162]
[1735457252775,2.09345006,95364.0,95363.0,0.00622162]
[1735457253990,2.07699498,95364.0,95363.0,0.00622162]
[1735457254206,2.07599498,95364.0,95363.0,0.00222162]
[1735457254570,2.07599498,95364.0,95363.0,0.00422162]
[1735457255189,2.07599498,95364.0,95363.0,0.00222162]
[1735457255385,2.07599498,95364.0,95363.0,0.00022162]
[1735457255750,2.07599498,95364.0,95363.0,0.00322162]
[1735457255994,2.07599498,95364.0,95363.0,0.10322162]
[1735457256169,2.07599498,95364.0,95363.0,0.00222162]
[1735457256366,2.10385466,95364.0,95363.0,0.00222162]
[1735457256603,2.07599498,95364.0,95363.0,0.00322162]
[1735457256798,2.14499498,95364.0,95363.0,0.00322162]
[1735457256940,0.07425498,95364.0,95363.0,0.00322162]
[1735457257166,0.09813655,95364.0,95363.0,0.00222162]
[1735457257368,0.12633655,95364.0,95363.0,0.00022162]
[1735457257981,4.90998555,95364.0,95363.0,0.00022162]
[1735457263071,4.90256005,95364.0,95363.0,0.00022162]
[1735457267726,4.88610398,95364.0,95363.0,0.00022162]
[1735457270396,5.12186665,95364.0,95363.0,0.00022162]
[1735457270626,5.13832321,95364.0,95363.0,0.00022162]
[1735457272111,4.97971921,95364.0,95363.0,0.00022162]
[1735457272727,4.91071921,95364.0,95363.0,0.00022162]
[1735457274296,4.67495654,95364.0,95363.0,0.00022162]
[1735457275269,4.91071921,95364.0,95363.0,0.00022162]
[1735457277603,4.67495654,95364.0,95363.0,0.00022162]
[1735457280157,4.67465087,95364.0,95363.0,0.00022162]
[1735457280575,4.65819431,95364.0,95363.0,0.00022162]
[1735457281429,4.05747431,95364.0,95363.0,0.00022162]
[1735457281633,4.01017631,95364.0,95363.0,0.00022162]
[1735457281809,3.91925131,95364.0,95363.0,0.00022162]
[1735457282043,3.85576131,95364.0,95363.0,0.00022162]
[1735457282782,3.45263931,95364.0,95363.0,0.00022162]
[1735457282987,3.68645865,95364.0,95363.0,0.00022162]
[1735457283202,3.68745865,95364.0,95363.0,0.00022162]
[1735457283418,3.6989151,95364.0,95363.0,0.00022162]
[1735457283637,3.7019151,95364.0,95363.0,0.00022162]
[1735457283828,3.7020005,95364.0,95363.0,0.00022162]
[1735457284456,3.6892385,95364.0,95363.0,0.00022162]
[1735457284658,3.67278205,95364.0,95363.0,0.00022162]
[1735457285621,3.43696271,95364.0,95363.0,0.00022162]
[1735457285826,3.41125271,95364.0,95363.0,0.00022162]
[1735457286431,3.30212571,95364.0,95363.0,0.00022162]
[1735457287512,3.31858216,95364.0,95363.0,0.00022162]
[1735457287833,3.30705916,95364.0,95363.0,0.00022162]
[1735457288914,3.28067016,95364.0,95363.0,0.00022162]
[1735457289253,0.02549116,95364.0,95363.0,0.00022162]
[1735457289469,3.31619216,95364.0,95363.0,0.00022162]
[1735457289665,2.69806516,95364.0,95363.0,0.00022162]
[1735457290684,2.72554366,95364.0,95363.0,0.00022162]
[1735457290856,2.79454366,95364.0,95363.0,0.00022162]
[1735457291341,2.8142874,95364.0,95363.0,0.00022162]
[1735457291711,3.09843279,95364.0,95363.0,0.00022162]
[1735457292576,3.09743279,95364.0,95363.0,0.00022162]
[1735457292778,2.8152874,95364.0,95363.0,0.00022162]
[1735457293131,2.8122874,95364.0,95363.0,0.00022162]
[1735457293330,2.8162874,95364.0,95363.0,0.00122162]
[1735457293527,2.8162874,95364.0,95363.0,0.00022162]
[1735457293910,2.8242874,95364.0,95363.0,0.00122162]
[1735457294109,2.80183095,95364.0,95363.0,0.00022162]
[1735457294357,2.80483095,95364.0,95363.0,0.00022162]
[1735457294495,2.81183095,95364.0,95363.0,0.00122162]
[1735457297202,2.82828973,95364.0,95363.0,0.00122162]
[1735457299154,2.83926151,95364.0,95363.0,0.00122162]
[1735457300317,2.83926151,95364.0,95363.0,0.00022162]
[1735457300318,2.82126151,95364.0,95363.0,0.00022162]
[1735457300522,2.82826151,95364.0,95363.0,0.00122162]
[1735457300928,2.83126151,95364.0,95363.0,0.00022162]
[1735457301138,2.83526151,95364.0,95363.0,0.00022162]
[1735457302079,2.83226151,95364.0,95363.0,0.00022162]
[1735457302549,2.83526151,95364.0,95363.0,0.00022162]
[1735457302867,2.82426151,95364.0,95363.0,0.00022162]
[1735457303207,2.82826151,95364.0,95363.0,0.00122162]
[1735457303372,3.35657151,95364.0,95363.0,0.00022162]
[1735457303572,3.35657151,95364.0,95363.0,0.00122162]
[1735457303779,3.36157151,95364.0,95363.0,0.00122162]